fUST/lending_fUST_20250926
["ID","MTS","AMOUNT","RATE_DAILY","PERIOD"]
[387792947,1758875438385,-1000.0,0.00027448,5]
[387792948,1758875438394,-152.81,0.00027475,15]
[387792949,1758875438403,-152.81,0.00027575,15]
[387792950,1758875438412,-152.82,0.00027675,15]
[387792951,1758875438421,-500.0,0.0002788,5]
[387792952,1758875438431,-859.3125218,0.00027888,2]
[387792953,1758875438440,-1000.0,0.00027888,5]
[387792954,1758875438449,-1000.0,0.00028428,5]
[387792955,1758875438458,-500.0,0.0002854,5]
[387792956,1758875438467,-1500.0,0.00028976,5]
[387792957,1758875438475,-420.0,0.00029021,2]
[387792958,1758875438484,-512.38644733,0.00029088,5]
[387792959,1758875438494,-500.0,0.00029524,5]
[387792960,1758875438503,-732.58666422,0.00030232,5]
[387792961,1758875438515,-390.9790112,0.00030232,5]
[387792962,1758875438526,-2744.33742661,0.00030232,5]
[387792963,1758875438536,-3361.3918532,0.00030232,5]
[387792964,1758875438546,-198.47716912,0.00030426,2]
[387792965,1758875438556,-801.52283088,0.00030426,2]
[387792966,1758875438566,-706.74694285,0.00030426,2]
[387792967,1758875438575,-1000.0,0.00030426,2]
[387792968,1758875438682,-1000.0,0.00030426,2]
[387792969,1758875438692,-1000.0,0.00030426,2]
[387792970,1758875438701,-1000.0,0.00030426,2]
[387792971,1758875438710,-1000.0,0.00030426,2]
[387792972,1758875438719,-1000.0,0.00030426,2]
[387792973,1758875438729,-1000.0,0.00030426,2]
[387792974,1758875438739,-234.87069565,0.00030426,2]
[387792975,1758875438748,-326.00461956,0.00030693,2]
[387792976,1758875438758,-302.95291081,0.0003099,2]
[387792977,1758875438768,-4095.53619195,0.0003112,2]
[387792987,1758875439845,-528.89051107,0.0003112,2]
[387792988,1758875439856,-2276.65000003,0.0003112,2]
[387792998,1758875443244,-7005.72968726,0.00026839,2]
[387792999,1758875443256,-447.39999999,0.00026839,2]
[387793098,1758875446345,-42546.87031275,0.00026839,2]
[387793099,1758875446355,-23098.92329695,0.0003112,2]
[387793100,1758875446364,-410.0,0.00031407,2]
[387793101,1758875446374,-179.69451932,0.00031638,7]
[387793102,1758875446383,-22525.54985835,0.000319,2]
[387793103,1758875446393,-160.00000001,0.00032,120]
[387793104,1758875446402,-160.92167427,0.00032,120]
[387793105,1758875446412,-737.8163957,0.00032,120]
[387793106,1758875446422,-778.82476366,0.00032,120]
[387793107,1758875446431,-255.74299649,0.00032,120]
[387793108,1758875446442,-747.30242768,0.00032,120]
[387793109,1758875446451,-255.26400189,0.00032,120]
[387793110,1758875446461,-160.0,0.00032143,2]
[387793111,1758875446473,-27876.305597,0.0003229,2]
[387793112,1758875446485,-975.853654,0.0003229,2]
[387793113,1758875446495,-737.8163957,0.000323,120]
[387793114,1758875446506,-778.82476366,0.000323,120]
[387793115,1758875446515,-747.30242768,0.000323,120]
[387793116,1758875446524,-255.74299649,0.000323,120]
[387793117,1758875446533,-737.8163957,0.000326,120]
[387793118,1758875446544,-778.82476366,0.000326,120]
[387793119,1758875446554,-747.30242768,0.000326,120]
[387793120,1758875446563,-255.74299649,0.000326,120]
[387793121,1758875446573,-260.0,0.00032691,2]
[387793122,1758875446583,-396.23,0.00032856,3]
[387793123,1758875446592,-792.46,0.00032866,3]
[387793124,1758875446602,-198.12,0.00032867,3]
[387793125,1758875446612,-711.34,0.00032876,120]
[387793126,1758875446622,-224.50843201,0.00032877,2]
[387793127,1758875446631,-1500.0,0.00032877,2]
[387793128,1758875446642,-500.0,0.00032877,7]
[387793129,1758875446652,-500.0,0.00032877,7]
[387793130,1758875446662,-500.0,0.00032877,7]
[387793131,1758875446672,-500.0,0.00032877,7]
[387793132,1758875446682,-500.0,0.00032877,7]
[387793133,1758875446691,-500.0,0.00032877,7]
[387793134,1758875446702,-500.0,0.00032877,7]
[387793135,1758875446712,-500.0,0.00032877,7]
[387793136,1758875446722,-279.82549718,0.00032877,7]
[387793137,1758875446732,-500.0,0.00032877,7]
[387793138,1758875446742,-500.0,0.00032877,7]
[387793139,1758875446752,-500.0,0.00032877,7]
[387793140,1758875446761,-1399.54,0.0003299,3]
[387793141,1758875446771,-737.8163957,0.00033,120]
[387793142,1758875446780,-778.82476366,0.00033,120]
[387793143,1758875446791,-747.30242768,0.00033,120]
[387793144,1758875446801,-255.74299649,0.00033,120]
[387793145,1758875446810,-11574.74355851,0.00033,2]
[387793146,1758875446820,-1977.91066254,0.00033,30]
[387793147,1758875446831,-594.37,0.0003319,3]
[387793148,1758875446840,-360.0,0.00033239,2]
[387793149,1758875446852,-737.8163957,0.000333,120]
[387793150,1758875446861,-778.82476366,0.000333,120]
[387793151,1758875446871,-747.30242768,0.000333,120]
[387793152,1758875446880,-255.74299649,0.000333,120]
[387793153,1758875446890,-711.34,0.00033698,120]
[387793154,1758875446900,-460.0,0.00033787,2]
[387793155,1758875446910,-500.0,0.00033818,5]
[387793156,1758875446922,-214.21584045,0.00033818,5]
[387793157,1758875446932,-500.0,0.00033892,5]
[387793158,1758875446941,-559.30551757,0.00033892,5]
[387793159,1758875446950,-521.90013055,0.00033892,5]
[387793160,1758875446960,-500.0,0.00033892,5]
[387793161,1758875446969,-500.0,0.00033892,5]
[387793162,1758875446979,-500.0,0.00033892,5]
[387793163,1758875446989,-500.0,0.00033935,5]
[387793164,1758875447000,-405.67947426,0.00033935,5]
[387793165,1758875447009,-500.0,0.00033935,5]
[387793166,1758875447018,-792.46,0.00034226,3]
[387793167,1758875447027,-1584.92,0.00034236,3]
[387793168,1758875447041,-396.24,0.00034237,3]
[387793169,1758875447050,-715.30916772,0.00034335,2]
[387793170,1758875447060,-2799.08,0.0003436,3]
[387793171,1758875447071,-1000.0,0.00034366,5]
[387793172,1758875447081,-410.0,0.00034407,2]
[387793173,1758875447090,-633.79353919,0.0003444,5]
[387793174,1758875447099,-1000.0,0.0003444,5]
[387793175,1758875447111,-1000.0,0.0003444,5]
[387793176,1758875447121,-1000.0,0.0003444,5]
[387793177,1758875447130,-1000.0,0.00034483,5]
[387793178,1758875447139,-1000.0,0.00034483,5]
[387793179,1758875447149,-711.34,0.0003452,120]
[387793180,1758875447159,-326.00461956,0.00034644,2]
[387793181,1758875447169,-1500.0,0.00034914,5]
[387793182,1758875447179,-1500.0,0.00034988,5]
[387793183,1758875447188,-1500.0,0.00034988,5]
[387793184,1758875447197,-651.23887823,0.00034988,5]
[387793185,1758875447207,-27876.305597,0.0003499,2]
[387793186,1758875447216,-975.853654,0.0003499,2]
[387793187,1758875447225,-180.057,0.00035,5]
[387793188,1758875447235,-180.057,0.00035,5]
[387793189,1758875447244,-201.81582116,0.00035,2]
[387793190,1758875447253,-1502.43559663,0.00035031,5]
[387793191,1758875447262,-1767.69625817,0.0003533,2]
[387793192,1758875447271,-3751.57692396,0.0003533,2]
[387793193,1758875447280,-711.34,0.00035342,120]
[387793194,1758875447292,-195134.139179,0.0003543,3]
[387793195,1758875447302,-10734.390194,0.0003543,3]
[387793196,1758875447311,-290.46476118,0.00035439,7]
[387793197,1758875447321,-113490.99387391,0.0003544,7]
[387793210,1758875449430,3031.65563418,0.00025205,2]
[387793211,1758875449451,1968.34436582,0.00025205,2]
[387793212,1758875479800,5000.0,0.00025205,2]
[387793213,1758875488776,3031.66563418,0.00025205,2]
[387793214,1758875488799,1968.33436582,0.00025205,2]
[387793221,1758875521567,189.90836392,0.00022575,7]
[387793282,1758875716412,5000.0,0.00025205,2]
[387793283,1758875724502,2841.76727026,0.00025205,2]
[387793284,1758875724524,2158.23272974,0.00025205,2]
[387793309,1758875755498,5000.0,0.00025205,2]
[387793357,1758875966475,2841.77727026,0.00025205,2]
[387793358,1758875967001,2158.22272974,0.00025205,2]
[387793359,1758875974951,5000.0,0.00025205,2]
[387793361,1758876005863,2841.78727026,0.00025205,2]
[387793362,1758876005886,2158.21272974,0.00025205,2]
[387793377,1758876036711,5000.0,0.00025205,2]
[387793378,1758876045289,2841.79727026,0.00025205,2]
[387793379,1758876045310,2158.20272974,0.00025205,2]
[387793380,1758876054067,5000.0,0.00025205,2]
[387793381,1758876070758,2841.80727026,0.00025205,2]
[387793382,1758876070781,1912.0878441,0.00025205,2]
[387793385,1758876100983,3585.80953854,0.00025205,2]
[387793386,1758876109616,4466.10376962,0.00025205,2]
[387793390,1758876125204,36.00884774,0.00025205,2]
[387793391,1758876125229,3364.8240768,0.00025205,2]
[387793394,1758876156085,4838.0,0.00025205,2]
[387793395,1758876171684,1797.1859232,0.00025205,2]
[387793396,1758876171706,3202.8140768,0.00025205,2]
[387793399,1758876180570,5000.0,0.00025205,2]
[387793402,1758876196517,1797.1959232,0.00025205,2]
[387793403,1758876196538,3202.8040768,0.00025205,2]
[387793407,1758876204422,5000.0,0.00025205,2]
[387793411,1758876221094,1797.2059232,0.00025205,2]
[387793412,1758876221116,3202.7940768,0.00025205,2]
[387793413,1758876233527,5000.0,0.00025205,2]
[387793418,1758876249132,1797.2159232,0.00025205,2]
[387793419,1758876249157,3202.7840768,0.00025205,2]
[387793420,1758876257267,5000.0,0.00025205,2]
[387793424,1758876272975,1797.2259232,0.00025205,2]
[387793425,1758876272998,3202.7740768,0.00025205,2]
[387793426,1758876281042,5000.0,0.00025205,2]
[387793434,1758876297010,-312.6631526,0.00025205,2]
[387793435,1758876303666,-4687.3368474,0.00025205,2]
[387793436,1758876305906,312.6631526,0.00025205,2]
[387793451,1758876330178,312.6731526,0.00025205,2]
[387793452,1758876330200,4687.3268474,0.00025205,2]
[387793466,1758876346240,5000.0,0.00024953,8]
[387793470,1758876383740,-5000.0,0.00025205,2]
[387793471,1758876416002,5000.0,0.00025205,2]
[387793479,1758876447200,5000.0,0.00024953,8]
[387793482,1758876463871,-5000.0,0.00024953,8]
[387793485,1758876488928,-2866.671859,0.00025205,2]
[387793486,1758876493771,4266.666282,0.00025205,2]
[387793487,1758876493789,733.333718,0.00025205,2]
[387793507,1758876619242,-5000.0,0.00024953,8]
[387793508,1758876620907,0.01,0.000199,2]
[387793509,1758876620930,296.94979168,0.000199,2]
[387793512,1758876632329,-198.97804113,0.00028119,2]
[387793513,1758876632339,-62.87378878,0.00028219,14]
[387793514,1758876632351,-136.12621122,0.00028219,14]
[387793515,1758876632361,-199.0,0.00028904,15]
[387793516,1758876632375,-199.0,0.00029589,16]
[387793517,1758876632385,-348.8733443,0.00031464,30]
[387793518,1758876632394,-179.69451932,0.00031638,7]
[387793519,1758876632404,-255.19215267,0.00031672,2]
[387793520,1758876632414,-336.36886319,0.0003183,2]
[387793521,1758876632424,-35473.74896762,0.00031896,2]
[387793522,1758876632433,-500.0,0.00031896,2]
[387793525,1758876632450,-574.7161587,0.00031896,2]
[387793528,1758876632460,-500.0,0.00031896,2]
[387793530,1758876632473,-416.73769897,0.00031896,2]
[387793532,1758876632482,-320.0,0.00031896,2]
[387793534,1758876632491,-171.06551631,0.00031896,2]
[387793536,1758876632500,-555.27543351,0.00031896,2]
[387793538,1758876632509,-500.0,0.00031896,2]
[387793540,1758876632519,-500.0,0.00031896,2]
[387793542,1758876632528,-500.0,0.00031896,2]
[387793544,1758876632537,-570.0,0.00031896,3]
[387793546,1758876632547,-410.0,0.0003193,2]
[387793548,1758876632556,-500.69895563,0.0003195,5]
[387793550,1758876632566,-491.87759714,0.00032,120]
[387793552,1758876632575,-174.64797888,0.00032,120]
[387793554,1758876632584,-1066.83635091,0.00032289,2]
[387793555,1758876632594,-491.87759714,0.000323,120]
[387793556,1758876632604,-174.64797888,0.000323,120]
[387793557,1758876632615,-491.87759714,0.000326,120]
[387793558,1758876632624,-174.64797888,0.000326,120]
[387793559,1758876632633,-160.0,0.00032654,2]
[387793560,1758876632643,-1500.0,0.00032877,2]
[387793561,1758876632652,-642.20283302,0.00032877,7]
[387793562,1758876632662,-491.87759714,0.00033,120]
[387793563,1758876632671,-174.64797888,0.00033,120]
[387793564,1758876632681,-491.87759714,0.000333,120]
[387793565,1758876632690,-159.362375,0.00033396,2]
[387793566,1758876632700,-1574.46,0.00034926,4]
[387793567,1758876632709,-410.0,0.0003493,2]
[387793568,1758876632718,-336.36886318,0.00035046,2]
[387793569,1758876632727,-500.0,0.00035258,7]
[387793570,1758876632737,-209.89670384,0.00035258,7]
[387793571,1758876632746,-500.0,0.00035258,7]
[387793572,1758876632755,-500.0,0.00035258,7]
[387793573,1758876632764,-1414.15700652,0.0003534,2]
[387793574,1758876632774,-2501.05128264,0.0003534,2]
[387793575,1758876632783,-2661.23493375,0.00035428,7]
[387793576,1758876632799,-2338.76506625,0.00035428,7]
[387793577,1758876632808,-490.12,0.0003543,3]
[387793578,1758876632818,-245.06,0.0003543,3]
[387793579,1758876632827,-735.2,0.0003543,3]
[387793580,1758876632837,-18041.67933781,0.0003543,3]
[387793616,1758876638068,-314.22961954,0.0003533,2]
[387793617,1758876638079,-822.02526811,0.0003533,2]
[387793618,1758876638089,-1804.63375089,0.0003543,3]
[387793619,1758876638122,-455.70417096,0.0003543,3]
[387793631,1758876643209,-3126.36483182,0.0003543,3]
[387793632,1758876643263,-801.94659396,0.0003543,3]
[387793670,1758876647083,-283.91949261,0.00031895,2]
[387793671,1758876647093,-159.362375,0.00033832,15]
[387793672,1758876647102,-101.4978787,0.00035257,7]
[387794080,1758876796163,-259.83981794,0.000199,2]
[387794084,1758876964209,-203.45255763,0.000199,2]
[387794085,1758876965052,37690.4154228,0.00030279,120]
[387794086,1758876969516,-94.65932857,0.000199,2]
[387794095,1758877134114,-253.34067143,0.000199,2]
[387794099,1758877155044,-44.77121477,0.000199,2]
[387794100,1758877185148,-500.0,0.00023815,2]
[387794101,1758877205174,-500.0,0.00024385,2]
[387794102,1758877225254,-5000.0,0.00024582,2]
[387794103,1758877231224,0.01,0.00024582,2]
[387794104,1758877231247,4999.99,0.00024582,2]
[387794106,1758877255307,-5000.0,0.0002483,2]
[387794107,1758877255589,0.01,0.00024582,8]
[387794108,1758877255612,4999.99,0.00024582,8]
[387794109,1758877295262,-5000.0,0.00024582,8]
[387794110,1758877300078,0.01,0.000199,2]
[387794111,1758877300101,258.35363472,0.000199,2]
[387794112,1758877365607,-5000.0,0.00024582,2]
[387794114,1758877425571,-5000.0,0.00024582,8]
[387794116,1758877481565,-152.0,0.000199,2]
[387794118,1758877489728,-89.15003748,0.000199,2]
[387794119,1758877489754,-132.55420095,0.0002212,2]
[387794120,1758877494746,-108.59583653,0.0002212,2]
[387794126,1758877525741,-241.15003748,0.00024341,2]
[387794129,1758877545791,-5000.0,0.00024953,8]
[387794130,1758877548302,0.01,0.00024953,2]
[387794131,1758877548326,4999.99,0.00024953,2]
[387794132,1758877645945,-500.0,0.00022523,2]
[387794134,1758877660472,205.22651848,0.000199,2]
[387794135,1758877660676,205.22651848,0.0002212,2]
[387794136,1758877675999,-205.22651848,0.00024341,2]
[387794137,1758877676032,-4589.55696304,0.00024703,8]
[387794138,1758877676244,-410.44303696,0.00024703,8]
[387794141,1758877776542,-5000.0,0.00024795,8]
[387794142,1758877796225,-4999.99,0.00024795,8]
[387794143,1758877802475,0.03,0.00024795,2]
[387794144,1758877802498,4999.97,0.00024795,2]
[387794145,1758877816247,-500.0,0.00025045,7]
[387794146,1758877818327,5000.0,0.00024795,8]
[387794147,1758877826671,4000.01,0.00025045,2]
[387794148,1758877826694,999.99,0.00025045,2]
[387794211,1758877838272,-189.88943455,0.00026303,2]
[387794212,1758877838281,-160.0,0.00026535,2]
[387794213,1758877838290,-160.0,0.00026548,2]
[387794214,1758877838300,-160.0,0.00026552,2]
[387794215,1758877838309,-502.25038279,0.00027462,7]
[387794216,1758877838318,-189.88943455,0.00028642,16]
[387794217,1758877838327,-704.95323766,0.00029939,7]
[387794218,1758877838336,-162.0,0.0003,14]
[387794219,1758877838345,-189.88943455,0.00030981,30]
[387794220,1758877838355,-284.0,0.00031297,3]
[387794221,1758877838364,-400.0,0.00031297,2]
[387794222,1758877838374,-323.6906126,0.00031298,2]
[387794223,1758877838382,-410.0,0.00031403,2]
[387794224,1758877838392,-479.6956265,0.00031431,30]
[387794225,1758877838402,-188.0,0.00031432,2]
[387794226,1758877838411,-188.0,0.00031617,7]
[387794227,1758877838420,-322.37116741,0.00031638,7]
[387794228,1758877838429,-186.0,0.00031654,2]
[387794229,1758877838439,-177.4108125,0.00032,120]
[387794230,1758877838449,-188.0,0.00032006,2]
[387794231,1758877838459,-188.0,0.00032009,2]
[387794232,1758877838468,-246.0,0.00032009,3]
[387794233,1758877838581,-186.0,0.00032178,2]
[387794234,1758877838593,-186.0,0.0003218,2]
[387794235,1758877838603,-168.0,0.00032183,2]
[387794236,1758877838612,-177.4108125,0.000323,120]
[387794237,1758877838622,-186.0,0.00032374,2]
[387794238,1758877838631,-168.0,0.00032391,2]
[387794239,1758877838641,-160.0,0.000324,2]
[387794240,1758877838651,-186.0,0.00032553,2]
[387794241,1758877838661,-186.0,0.00032559,7]
[387794242,1758877838671,-177.4108125,0.000326,120]
[387794243,1758877838681,-169.154,0.0003262,33]
[387794244,1758877838691,-186.0,0.00032683,7]
[387794245,1758877838701,-2023.4011105,0.000328,2]
[387794246,1758877838711,-1500.0,0.00032877,2]
[387794247,1758877838721,-260.0,0.00032948,2]
[387794248,1758877838730,-186.0,0.00032953,2]
[387794249,1758877838740,-186.0,0.00033069,7]
[387794250,1758877838750,-500.0,0.00033071,7]
[387794251,1758877838759,-250.0,0.00033144,2]
[387794252,1758877838769,-186.0,0.00033214,2]
[387794253,1758877838779,-506.19147828,0.00033256,7]
[387794254,1758877838790,-500.0,0.00033481,2]
[387794255,1758877838803,-186.0,0.00033481,2]
[387794256,1758877838813,-360.0,0.00033496,2]
[387794257,1758877838822,-168.0,0.00033502,2]
[387794258,1758877838831,-186.0,0.00033666,2]
[387794259,1758877838842,-186.0,0.00033674,2]
[387794260,1758877838852,-560.0,0.00033686,2]
[387794261,1758877838861,-189.0,0.00033982,7]
[387794262,1758877838873,-1218.94705504,0.00034,2]
[387794263,1758877838882,-300.0,0.00034044,2]
[387794264,1758877838892,-186.0,0.00034214,7]
[387794265,1758877838901,-151.0,0.0003422,7]
[387794266,1758877838910,-151.0,0.0003422,7]
[387794267,1758877838920,-186.0,0.0003429,2]
[387794268,1758877838930,-275.84415707,0.00034376,2]
[387794269,1758877838939,-186.0,0.00034387,7]
[387794270,1758877838949,-410.0,0.00034403,2]
[387794271,1758877838958,-151.0,0.00034494,7]
[387794272,1758877838968,-160.0,0.00034551,2]
[387794273,1758877838978,-160.0,0.00034731,2]
[387794274,1758877838988,-198.0,0.00034768,7]
[387794275,1758877838997,-189.0,0.00034995,2]
[387794276,1758877839008,-1235.56686613,0.00035342,2]
[387794277,1758877839017,-573.03355849,0.000354,2]
[387794278,1758877839029,-5812.16458638,0.000354,2]
[387794283,1758877840421,-500.0,0.00035429,3]
[387794284,1758877840431,-500.0,0.00035429,3]
[387794285,1758877840440,-500.0,0.00035429,3]
[387794286,1758877840449,-426.58,0.0003543,3]
[387794287,1758877840459,-213.29,0.0003543,3]
[387794288,1758877840468,-639.9,0.0003543,3]
[387794289,1758877840477,-151.0,0.0003543,3]
[387794290,1758877840486,-500.0,0.0003543,3]
[387794291,1758877840495,-112963.613153,0.0003543,3]
[387794292,1758877840504,-2732.3902312,0.0003543,3]
[387794293,1758877840514,-4000.0,0.00035438,7]
[387794294,1758877840523,-592.78,0.00035439,120]
[387794295,1758877840533,-77200.2001718,0.0003544,7]
[387794296,1758877840544,-10639.98254765,0.0003544,7]
[387794306,1758877843515,-571.25089583,0.00024953,8]
[387794307,1758877846279,-4428.73910417,0.00024953,8]
[387794308,1758877846331,-649.06550685,0.0003544,7]
[387794309,1758877846385,-1019.94023642,0.0003544,7]
[387794310,1758877846439,-10089.14223357,0.0003544,7]
[387794311,1758877846449,-103530.38879398,0.0003544,7]
[387794314,1758877851552,1142.53179166,0.00024953,2]
[387794315,1758877851574,3857.46820834,0.00024953,2]
[387794316,1758877926471,-5000.0,0.00024703,8]
[387794317,1758877946473,-4999.98,0.00024953,8]
[387794318,1758877955890,0.05,0.00024953,2]
[387794319,1758877955913,4999.92,0.00024953,2]
[387794320,1758877978743,-5000.0,0.00024748,8]
[387794321,1758877979811,0.01,0.00024748,2]
[387794322,1758877979836,4999.95,0.00024748,2]
[387794323,1758878006632,-4999.95,0.00024749,8]
[387794324,1758878011418,0.11,0.00024749,2]
[387794325,1758878011440,4999.89,0.00024749,2]
[387794326,1758878016562,347.37554048,0.000199,2]
[387794327,1758878026645,-159.362375,0.00024999,8]
[387794328,1758878034142,5000.0,0.00024999,2]
[387794329,1758878056690,-5000.0,0.0002483,8]
[387794330,1758878076732,-347.37554048,0.00025081,2]
[387794331,1758878080473,4216.1419148,0.0002483,8]
[387794332,1758878095642,5000.0,0.00025205,2]
[387794333,1758878103119,5000.01,0.0002487,7]
[387794334,1758878103145,10000.01,0.0002487,7]
[387794335,1758878103172,10000.01,0.0002487,7]
[387794336,1758878103196,10000.01,0.0002487,7]
[387794337,1758878103220,10000.01,0.0002487,7]
[387794338,1758878103245,9324.10570009,0.0002487,7]
[387794339,1758878189588,-204.06731607,0.000199,2]
[387794340,1758878192842,-50.67474697,0.000199,2]
[387794341,1758878257114,-5000.0,0.00024703,8]
[387794342,1758878293652,-190.49204894,0.000199,2]
[387794346,1758878302162,-109.50795106,0.000199,2]
[387794347,1758878318028,5000.0,0.00024,8]
[387794348,1758878341284,5000.0,0.00024,8]
[387794349,1758878365045,5000.0,0.00024,8]
[387794350,1758878387416,5000.0,0.00024,8]
[387794351,1758878407401,-252.92979296,0.000199,2]
[387794352,1758878407428,-300.0,0.000199,2]
[387794353,1758878407456,-300.0,0.000247,2]
[387794354,1758878407485,-3294.15041408,0.00024702,8]
[387794355,1758878410468,5000.0,0.00024,8]
[387794356,1758878427481,-300.0,0.00024,2]
[387794357,1758878427515,-300.0,0.00024,2]
[387794358,1758878427549,-300.0,0.000247,2]
[387794359,1758878427586,-1705.84958592,0.00024702,8]
[387794360,1758878427619,-1200.0,0.00024869,2]
[387794361,1758878437361,-300.0,0.00024,2]
[387794362,1758878437390,-4400.01,0.00024621,8]
[387794363,1758878441161,5000.0,0.00024,8]
[387794367,1758878463166,5000.0,0.00024,8]
[387794368,1758878486126,5000.0,0.00024,8]
[387794369,1758878509701,5000.0,0.00024,8]
[387794370,1758878533592,5000.0,0.00024,8]
[387794373,1758878579955,-160.42024546,0.000199,2]
[387794374,1758878582224,-58.7855751,0.000199,2]
[387794375,1758878637833,-5000.0,0.0002376,2]
[387794376,1758878649591,-240.11461042,0.000199,2]
[387794377,1758878654592,-59.88538958,0.000199,2]
[387794379,1758878665618,-203.50942203,0.000199,2]
[387794380,1758878667863,-96.49057797,0.000199,2]
[387794381,1758878667891,-4807.02884406,0.00023661,2]
[387794382,1758878694281,-200.61549064,0.000199,2]
[387794383,1758878696539,-99.38450936,0.000199,2]
[387794384,1758878696561,-179.42085529,0.000199,2]
[387794385,1758878697953,-120.57914471,0.000199,2]
[387794386,1758878697988,-4758.85171058,0.00023424,2]
[387794408,1758878860795,5000.0,0.00024,8]
[387794413,1758878883290,1384.40967319,0.00024,8]
[387794414,1758878891502,241.14828942,0.00024,8]
[387794423,1758878918353,-380.00040936,0.000199,2]
[387794424,1758878918381,-704.12491267,0.00023324,2]
[387794425,1758878918408,-300.0,0.000234,2]
[387794426,1758878918435,-300.0,0.000234,2]
[387794427,1758878918466,-300.0,0.000234,2]
[387794428,1758878918497,-300.0,0.000234,2]
[387794429,1758878918526,-300.0,0.000234,2]
[387794430,1758878918554,-322.02485314,0.000239,2]
[387794436,1758878936952,5000.0,0.00024,8]
[387794437,1758878938393,-300.0,0.00024,2]
[387794438,1758878938422,-2533.37909139,0.0002487,7]
[387794441,1758879032526,-300.0,0.000239,2]
[387794464,1758879033039,-4333.25181722,0.0002487,7]
[387794465,1758879033049,-159.362376,0.00024999,8]
[387794466,1758879033059,-300.0,0.00024999,2]
[387794467,1758879033069,-633.0,0.00024999,2]
[387794468,1758879033079,-618.58752864,0.00025,2]
[387794469,1758879033088,-3324.71786038,0.00025,2]
[387794470,1758879033098,-417.15472785,0.00026945,2]
[387794471,1758879033107,-308.0,0.00027082,2]
[387794472,1758879033118,-3731.8446568,0.00028133,2]
[387794473,1758879033128,-275.2552402,0.00028305,2]
[387794474,1758879033138,-821.42271369,0.00028305,2]
[387794475,1758879033154,-223.27162695,0.00028305,2]
[387794476,1758879033164,-187.1839781,0.00028751,2]
[387794477,1758879033173,-297.53810487,0.00028791,2]
[387794597,1758879038556,-91.12790083,0.00028791,2]
[387794598,1758879038566,-184.996614,0.00029861,60]
[387794599,1758879038575,-377.12587196,0.0003,15]
[387794600,1758879038584,-571.33569763,0.0003,2]
[387794625,1758879040399,-828.66430237,0.0003,2]
[387794628,1758879040408,-380.00040936,0.00030261,13]
[387794630,1758879040418,-410.0,0.0003246,2]
[387794632,1758879040427,-1500.0,0.00032877,2]
[387794634,1758879040436,-233.71402077,0.0003337,2]
[387794636,1758879040446,-160.0,0.0003337,2]
[387794638,1758879040455,-160.0,0.0003337,2]
[387794640,1758879040465,-160.0,0.0003337,2]
[387794642,1758879040474,-160.0,0.00033449,2]
[387794644,1758879040482,-500.0,0.00035299,7]
[387794646,1758879040491,-282.91203602,0.00035299,7]
[387794664,1758879040653,-127.59673237,0.00035299,7]
[387794677,1758879040769,-89.49123161,0.00035299,7]
[387794679,1758879040779,-166.47832908,0.00035299,7]
[387794681,1758879040789,-550.9259395,0.000353,2]
[387794683,1758879040801,-58.54758802,0.000353,2]
[387794685,1758879040811,-306.24087431,0.000353,4]
[387794688,1758879040823,-1539.81337512,0.000353,4]
[387795291,1758879046798,-159.362376,0.00024299,8]
[387795293,1758879046812,-805.56,0.0003529,10]
[387795295,1758879046822,-36375.83133365,0.000353,4]